[Event "Titled Tuesday Blitz April 11 Late 2023"]
[White "Manelyuk, Daniil"]
[Black "Corrales Jimenez, Fidel"]
[WhiteFideId "44173920"]
[BlackFideId "3506690"]
[WhiteElo "2259"]
[BlackElo "2541"]
[Result "1-0"]
[Round "04"]
[TimeControl "180+2"]
[Date "2023.04.11"]
[WhiteClock "0:00:26"]
[BlackClock "0:00:11"]

1. e4 {[%clk 0:03:00]}  c6 {[%clk 0:02:59]} 2. d4 {[%clk 0:03:00]}  d5 {[%clk 0:03:00]} 3. e5 {[%clk 0:03:01]}  c5 {[%clk 0:02:59]} 4. c4 {[%clk 0:03:00]}  Nc6 {[%clk 0:03:00]} 5. Nf3 {[%clk 0:02:57]}  cxd4 {[%clk 0:03:00]} 6. cxd5 {[%clk 0:02:55]}  Qxd5 {[%clk 0:02:59]} 7. Nc3 {[%clk 0:02:20]}  Qd8 {[%clk 0:02:56]} 8. Nb5 {[%clk 0:02:14]}  e6 {[%clk 0:02:54]} 9. Nfxd4 {[%clk 0:02:05]}  Bb4+ {[%clk 0:02:51]} 10. Bd2 {[%clk 0:02:03]}  Bxd2+ {[%clk 0:02:47]} 11. Qxd2 {[%clk 0:02:03]}  Nxe5 {[%clk 0:02:38]} 12. f4 {[%clk 0:01:54]}  Nc6 {[%clk 0:02:22]} 13. Qc3 {[%clk 0:01:41]}  Kf8 {[%clk 0:00:50]} 14. O-O-O {[%clk 0:01:28]}  Nxd4 {[%clk 0:00:46]} 15. Rxd4 {[%clk 0:01:19]}  Bd7 {[%clk 0:00:43]} 16. Kb1 {[%clk 0:01:12]}  Ne7 {[%clk 0:00:42]} 17. Bc4 {[%clk 0:01:07]}  a6 {[%clk 0:00:35]} 18. Rhd1 {[%clk 0:01:00]}  axb5 {[%clk 0:00:35]} 19. Rxd7 {[%clk 0:01:00]}  Qe8 {[%clk 0:00:23]} 20. Bxb5 {[%clk 0:00:57]}  Nc6 {[%clk 0:00:15]} 21. Bxc6 {[%clk 0:00:31]}  bxc6 {[%clk 0:00:16]} 22. Qxc6 {[%clk 0:00:31]}  g6 {[%clk 0:00:14]} 23. Qc3 {[%clk 0:00:31]}  Kg8 {[%clk 0:00:14]} 24. Qf6 {[%clk 0:00:30]}  h5 {[%clk 0:00:13]} 25. Rd8 {[%clk 0:00:30]}  Kh7 {[%clk 0:00:08]} 26. Rxe8 {[%clk 0:00:30]}  Raxe8 {[%clk 0:00:09]} 27. Qxf7+ {[%clk 0:00:30]}  Kh6 {[%clk 0:00:10]} 28. Qf6 {[%clk 0:00:27]}  h4 {[%clk 0:00:11]} 29. Rd7 {[%clk 0:00:26]}  Kh5 {[%clk 0:00:11]} 30. Qg5# {[%clk 0:00:26]} 1-0


[Site "https://www.chess.com"]

[Event "Titled Tuesday Blitz April 11 Late 2023"]
[White "Goltsev, Dmitry"]
[Black "Bortnyk, Mykola"]
[WhiteFideId "24176710"]
[BlackFideId "14120836"]
[WhiteElo "2336"]
[BlackElo "2582"]
[Result "0-1"]
[Round "04"]
[TimeControl "180+2"]
[Date "2023.04.11"]
[WhiteClock "0:01:11"]
[BlackClock "0:01:51"]

1. e4 {[%clk 0:02:59]}  Nf6 {[%clk 0:02:58]} 2. e5 {[%clk 0:02:59]}  Nd5 {[%clk 0:02:58]} 3. c4 {[%clk 0:03:00]}  Nb6 {[%clk 0:02:59]} 4. d4 {[%clk 0:03:00]}  d6 {[%clk 0:02:59]} 5. exd6 {[%clk 0:03:01]}  cxd6 {[%clk 0:02:59]} 6. Nc3 {[%clk 0:03:01]}  g6 {[%clk 0:03:00]} 7. Nf3 {[%clk 0:03:01]}  Bg7 {[%clk 0:03:01]} 8. h3 {[%clk 0:03:01]}  Nc6 {[%clk 0:03:01]} 9. Be3 {[%clk 0:03:01]}  O-O {[%clk 0:03:01]} 10. Be2 {[%clk 0:03:01]}  e5 {[%clk 0:03:01]} 11. d5 {[%clk 0:03:01]}  Na5 {[%clk 0:02:57]} 12. c5 {[%clk 0:02:55]}  Nbc4 {[%clk 0:02:52]} 13. Qc1 {[%clk 0:02:50]}  Nxe3 {[%clk 0:02:50]} 14. Qxe3 {[%clk 0:02:51]}  dxc5 {[%clk 0:02:50]} 15. Qxc5 {[%clk 0:02:52]}  f5 {[%clk 0:02:43]} 16. O-O-O {[%clk 0:02:50]}  b6 {[%clk 0:02:41]} 17. Qb4 {[%clk 0:02:46]}  Bd7 {[%clk 0:02:38]} 18. Bb5 {[%clk 0:02:27]}  Rc8 {[%clk 0:02:36]} 19. Rhe1 {[%clk 0:02:05]}  Bxb5 {[%clk 0:02:17]} 20. Qxb5 {[%clk 0:02:05]}  e4 {[%clk 0:02:17]} 21. Nd4 {[%clk 0:02:03]}  Qg5+ {[%clk 0:02:17]} 22. Kb1 {[%clk 0:02:02]}  Bxd4 {[%clk 0:02:16]} 23. Rxd4 {[%clk 0:02:03]}  Qxg2 {[%clk 0:02:16]} 24. d6 {[%clk 0:02:03]}  Rc5 {[%clk 0:02:13]} 25. Qd7 {[%clk 0:01:59]}  Qxf2 {[%clk 0:02:05]} 26. Red1 {[%clk 0:01:54]}  Re5 {[%clk 0:01:54]} 27. Qxa7 {[%clk 0:01:50]}  e3 {[%clk 0:01:54]} 28. Qxb6 {[%clk 0:01:42]}  e2 {[%clk 0:01:51]} 29. Nxe2 {[%clk 0:01:42]}  Rxe2 {[%clk 0:01:52]} 30. d7 {[%clk 0:01:41]}  Nc4 {[%clk 0:01:52]} 31. Qa6 {[%clk 0:01:17]}  Rxb2+ {[%clk 0:01:50]} 32. Ka1 {[%clk 0:01:17]}  Rb1+ {[%clk 0:01:51]} 33. Kxb1 {[%clk 0:01:11]}  Qb2# {[%clk 0:01:51]} 0-1


[Site "https://www.chess.com"]

[Event "Titled Tuesday Blitz April 11 Late 2023"]
[White "Averjanov, Alexey"]
[Black "Talibov, Shiroghlan"]
[WhiteFideId "14109867"]
[BlackFideId "13429078"]
[WhiteElo "2399"]
[BlackElo "2224"]
[Result "1-0"]
[Round "04"]
[TimeControl "180+2"]
[Date "2023.04.11"]
[WhiteClock "0:00:05"]
[BlackClock "0:00:02"]

1. d4 {[%clk 0:03:00]}  d5 {[%clk 0:02:57]} 2. c4 {[%clk 0:03:01]}  c6 {[%clk 0:02:57]} 3. e3 {[%clk 0:03:01]}  Nf6 {[%clk 0:02:54]} 4. Bd3 {[%clk 0:03:00]}  g6 {[%clk 0:02:53]} 5. Nd2 {[%clk 0:02:58]}  Bg7 {[%clk 0:02:53]} 6. Ngf3 {[%clk 0:02:58]}  O-O {[%clk 0:02:52]} 7. b3 {[%clk 0:02:59]}  c5 {[%clk 0:02:45]} 8. Bb2 {[%clk 0:02:58]}  cxd4 {[%clk 0:02:43]} 9. exd4 {[%clk 0:02:56]}  Nc6 {[%clk 0:02:41]} 10. c5 {[%clk 0:02:39]}  Bg4 {[%clk 0:02:36]} 11. O-O {[%clk 0:02:35]}  Nd7 {[%clk 0:02:34]} 12. Qb1 {[%clk 0:02:18]}  Nb4 {[%clk 0:02:22]} 13. Bc3 {[%clk 0:02:06]}  Nxd3 {[%clk 0:02:05]} 14. Qxd3 {[%clk 0:02:07]}  Bf5 {[%clk 0:02:05]} 15. Qe3 {[%clk 0:02:07]}  Re8 {[%clk 0:02:05]} 16. Rfe1 {[%clk 0:02:06]}  a5 {[%clk 0:02:02]} 17. a3 {[%clk 0:02:06]}  f6 {[%clk 0:01:25]} 18. Nh4 {[%clk 0:01:56]}  e6 {[%clk 0:01:24]} 19. Nxf5 {[%clk 0:01:48]}  gxf5 {[%clk 0:01:25]} 20. b4 {[%clk 0:01:44]}  Qc7 {[%clk 0:01:01]} 21. b5 {[%clk 0:01:40]}  Kh8 {[%clk 0:00:58]} 22. f4 {[%clk 0:01:30]}  a4 {[%clk 0:00:44]} 23. Nf3 {[%clk 0:01:25]}  Nf8 {[%clk 0:00:43]} 24. Ra2 {[%clk 0:01:20]}  Ng6 {[%clk 0:00:43]} 25. g3 {[%clk 0:01:20]}  h5 {[%clk 0:00:38]} 26. Rae2 {[%clk 0:01:13]}  Qd7 {[%clk 0:00:36]} 27. Qd3 {[%clk 0:01:09]}  Kg8 {[%clk 0:00:36]} 28. h4 {[%clk 0:01:04]}  Kf7 {[%clk 0:00:35]} 29. Kf2 {[%clk 0:01:04]}  Rad8 {[%clk 0:00:31]} 30. Ba5 {[%clk 0:01:00]}  Ra8 {[%clk 0:00:29]} 31. Bb4 {[%clk 0:00:59]}  Rad8 {[%clk 0:00:28]} 32. Re3 {[%clk 0:00:58]}  Bh6 {[%clk 0:00:22]} 33. Bd2 {[%clk 0:00:48]}  Re7 {[%clk 0:00:20]} 34. R3e2 {[%clk 0:00:45]}  Rg8 {[%clk 0:00:18]} 35. Rc1 {[%clk 0:00:42]}  Rc8 {[%clk 0:00:15]} 36. Bb4 {[%clk 0:00:39]}  Ree8 {[%clk 0:00:13]} 37. Bd2 {[%clk 0:00:39]}  Re7 {[%clk 0:00:12]} 38. Rce1 {[%clk 0:00:36]}  Rg8 {[%clk 0:00:11]} 39. Rg1 {[%clk 0:00:35]}  Nf8 {[%clk 0:00:10]} 40. Bb4 {[%clk 0:00:33]}  Re8 {[%clk 0:00:07]} 41. Bd2 {[%clk 0:00:33]}  Re7 {[%clk 0:00:06]} 42. Be3 {[%clk 0:00:32]}  Ke8 {[%clk 0:00:06]} 43. Rc2 {[%clk 0:00:31]}  Qc8 {[%clk 0:00:05]} 44. c6 {[%clk 0:00:32]}  b6 {[%clk 0:00:06]} 45. Re2 {[%clk 0:00:28]}  Ng6 {[%clk 0:00:06]} 46. Bd2 {[%clk 0:00:28]}  Kf7 {[%clk 0:00:06]} 47. Qc2 {[%clk 0:00:26]}  Rge8 {[%clk 0:00:05]} 48. Qxa4 {[%clk 0:00:26]}  e5 {[%clk 0:00:05]} 49. dxe5 {[%clk 0:00:23]}  fxe5 {[%clk 0:00:05]} 50. fxe5 {[%clk 0:00:20]}  Bxd2 {[%clk 0:00:06]} 51. Rxd2 {[%clk 0:00:18]}  Nxe5 {[%clk 0:00:06]} 52. Nxe5+ {[%clk 0:00:16]}  Rxe5 {[%clk 0:00:07]} 53. Qf4 {[%clk 0:00:14]}  Qe6 {[%clk 0:00:07]} 54. Qf3 {[%clk 0:00:14]}  Kg6 {[%clk 0:00:06]} 55. Rgd1 {[%clk 0:00:13]}  Rd8 {[%clk 0:00:06]} 56. Re2 {[%clk 0:00:12]}  Re4 {[%clk 0:00:05]} 57. Rxe4 {[%clk 0:00:12]}  fxe4 {[%clk 0:00:06]} 58. Qe2 {[%clk 0:00:11]}  Rf8+ {[%clk 0:00:04]} 59. Kg2 {[%clk 0:00:11]}  Qe5 {[%clk 0:00:04]} 60. Qe3 {[%clk 0:00:09]}  Rf3 {[%clk 0:00:03]} 61. Qg5+ {[%clk 0:00:07]}  Qxg5 {[%clk 0:00:03]} 62. hxg5 {[%clk 0:00:08]}  Rf5 {[%clk 0:00:02]} 63. c7 {[%clk 0:00:06]}  Rf8 {[%clk 0:00:03]} 64. Rxd5 {[%clk 0:00:07]}  Rc8 {[%clk 0:00:03]} 65. Rd6+ {[%clk 0:00:06]}  Kxg5 {[%clk 0:00:04]} 66. Rc6 {[%clk 0:00:06]}  Kg4 {[%clk 0:00:03]} 67. Kf2 {[%clk 0:00:06]}  e3+ {[%clk 0:00:04]} 68. Kxe3 {[%clk 0:00:06]}  Kxg3 {[%clk 0:00:04]} 69. Kd4 {[%clk 0:00:04]}  h4 {[%clk 0:00:01]} 70. Kd5 {[%clk 0:00:05]}  h3 {[%clk 0:00:02]} 71. Kd6 {[%clk 0:00:06]}  h2 {[%clk 0:00:02]} 72. Rc1 {[%clk 0:00:06]}  Rf8 {[%clk 0:00:01]} 73. Kd7 {[%clk 0:00:05]}  Kg2 {[%clk 0:00:02]} 74. c8=Q {[%clk 0:00:05]}  Rf1 {[%clk 0:00:01]} 75. Rxf1 {[%clk 0:00:04]}  Kxf1 {[%clk 0:00:01]} 76. Qc1+ {[%clk 0:00:05]}  Kf2 {[%clk 0:00:02]} 77. Qc2+ {[%clk 0:00:05]}  Kg1 {[%clk 0:00:02]} 78. Qxh2+ {[%clk 0:00:05]} 1-0


[Site "https://www.chess.com"]

[Event "Titled Tuesday Blitz April 11 Late 2023"]
[White "Hambleton, Aman"]
[Black "Keymer, Vincent"]
[WhiteFideId "2606577"]
[BlackFideId "12940690"]
[WhiteElo "2511"]
[BlackElo "2651"]
[Result "1/2-1/2"]
[Round "04"]
[TimeControl "180+2"]
[Date "2023.04.11"]
[WhiteClock "0:00:05"]
[BlackClock "0:00:08"]

1. d4 {[%clk 0:03:00]}  Nf6 {[%clk 0:02:59]} 2. Bf4 {[%clk 0:02:55]}  e6 {[%clk 0:03:00]} 3. e3 {[%clk 0:02:43]}  d5 {[%clk 0:02:59]} 4. Nd2 {[%clk 0:02:42]}  Bd6 {[%clk 0:02:59]} 5. Ngf3 {[%clk 0:02:36]}  Bxf4 {[%clk 0:02:50]} 6. exf4 {[%clk 0:02:37]}  Qd6 {[%clk 0:02:51]} 7. g3 {[%clk 0:02:36]}  b6 {[%clk 0:02:48]} 8. c3 {[%clk 0:02:33]}  O-O {[%clk 0:02:47]} 9. Bd3 {[%clk 0:02:31]}  Ba6 {[%clk 0:02:44]} 10. Bxa6 {[%clk 0:02:31]}  Nxa6 {[%clk 0:02:45]} 11. Qe2 {[%clk 0:02:31]}  Nb8 {[%clk 0:02:46]} 12. O-O {[%clk 0:02:32]}  c5 {[%clk 0:02:46]} 13. Rfe1 {[%clk 0:02:28]}  Nc6 {[%clk 0:02:45]} 14. Qd3 {[%clk 0:02:28]}  h6 {[%clk 0:02:44]} 15. Ne5 {[%clk 0:02:24]}  Rac8 {[%clk 0:02:37]} 16. Nxc6 {[%clk 0:02:19]}  Qxc6 {[%clk 0:02:31]} 17. Nf3 {[%clk 0:02:18]}  Ne4 {[%clk 0:02:29]} 18. Kg2 {[%clk 0:02:14]}  Qa4 {[%clk 0:02:25]} 19. Re2 {[%clk 0:02:11]}  b5 {[%clk 0:02:20]} 20. Nd2 {[%clk 0:01:53]}  Nxd2 {[%clk 0:01:54]} 21. Rxd2 {[%clk 0:01:52]}  b4 {[%clk 0:01:51]} 22. c4 {[%clk 0:01:36]}  Rfd8 {[%clk 0:01:50]} 23. dxc5 {[%clk 0:01:13]}  Rxc5 {[%clk 0:01:27]} 24. b3 {[%clk 0:00:45]}  Qc6 {[%clk 0:00:36]} 25. Qf3 {[%clk 0:00:44]}  Rc8 {[%clk 0:00:22]} 26. cxd5 {[%clk 0:00:42]}  Rxd5 {[%clk 0:00:22]} 27. Rxd5 {[%clk 0:00:20]}  Qxd5 {[%clk 0:00:19]} 28. Rd1 {[%clk 0:00:16]}  Qxf3+ {[%clk 0:00:14]} 29. Kxf3 {[%clk 0:00:16]}  Rc2 {[%clk 0:00:14]} 30. Rd8+ {[%clk 0:00:17]}  Kh7 {[%clk 0:00:13]} 31. Rd7 {[%clk 0:00:18]}  Rxa2 {[%clk 0:00:13]} 32. Rxf7 {[%clk 0:00:17]}  Ra3 {[%clk 0:00:13]} 33. Ke2 {[%clk 0:00:14]}  a5 {[%clk 0:00:12]} 34. Ra7 {[%clk 0:00:14]}  Kg6 {[%clk 0:00:12]} 35. g4 {[%clk 0:00:09]}  Kf6 {[%clk 0:00:12]} 36. h4 {[%clk 0:00:06]}  g6 {[%clk 0:00:08]} 37. f3 {[%clk 0:00:03]}  e5 {[%clk 0:00:06]} 38. Ra6+ {[%clk 0:00:03]}  Kf7 {[%clk 0:00:05]} 39. fxe5 {[%clk 0:00:04]}  Rxb3 {[%clk 0:00:05]} 40. Rxa5 {[%clk 0:00:04]}  g5 {[%clk 0:00:05]} 41. hxg5 {[%clk 0:00:03]}  hxg5 {[%clk 0:00:06]} 42. Ra6 {[%clk 0:00:03]}  Rc3 {[%clk 0:00:05]} 43. Rb6 {[%clk 0:00:03]}  b3 {[%clk 0:00:05]} 44. Kf2 {[%clk 0:00:03]}  Ke7 {[%clk 0:00:03]} 45. Ke2 {[%clk 0:00:03]}  Kf7 {[%clk 0:00:03]} 46. e6+ {[%clk 0:00:02]}  Kf6 {[%clk 0:00:03]} 47. Kf2 {[%clk 0:00:02]}  Rc2+ {[%clk 0:00:04]} 48. Ke3 {[%clk 0:00:02]}  b2 {[%clk 0:00:04]} 49. Kd3 {[%clk 0:00:02]}  Rf2 {[%clk 0:00:05]} 50. Ke3 {[%clk 0:00:02]}  Rh2 {[%clk 0:00:05]} 51. Kd3 {[%clk 0:00:02]}  Ke7 {[%clk 0:00:05]} 52. Ke3 {[%clk 0:00:03]}  Rg2 {[%clk 0:00:05]} 53. Kd3 {[%clk 0:00:03]}  Rh2 {[%clk 0:00:04]} 54. Ke4 {[%clk 0:00:03]}  Rf2 {[%clk 0:00:02]} 55. Ke3 {[%clk 0:00:03]}  Rh2 {[%clk 0:00:02]} 56. Kd4 {[%clk 0:00:03]}  Re2 {[%clk 0:00:02]} 57. Kd3 {[%clk 0:00:02]}  Rf2 {[%clk 0:00:01]} 58. Ke4 {[%clk 0:00:02]}  Kf6 {[%clk 0:00:01]} 59. Rb5 {[%clk 0:00:02]}  Ke7 {[%clk 0:00:01]} 60. Ke5 {[%clk 0:00:01]}  Re2+ {[%clk 0:00:01]} 61. Kf5 {[%clk 0:00:02]}  Rf2 {[%clk 0:00:01]} 62. Rb7+ {[%clk 0:00:02]}  Kd6 {[%clk 0:00:02]} 63. Kxg5 {[%clk 0:00:02]}  Kxe6 {[%clk 0:00:01]} 64. f4 {[%clk 0:00:02]}  Kd5 {[%clk 0:00:02]} 65. f5 {[%clk 0:00:03]}  Kc6 {[%clk 0:00:01]} 66. Rb3 {[%clk 0:00:03]}  Kd5 {[%clk 0:00:02]} 67. f6 {[%clk 0:00:03]}  Ke5 {[%clk 0:00:02]} 68. Rb5+ {[%clk 0:00:03]}  Ke6 {[%clk 0:00:03]} 69. Rb6+ {[%clk 0:00:03]}  Kf7 {[%clk 0:00:03]} 70. Rb7+ {[%clk 0:00:04]}  Ke6 {[%clk 0:00:04]} 71. Rb6+ {[%clk 0:00:04]}  Kf7 {[%clk 0:00:04]} 72. Rb7+ {[%clk 0:00:03]}  Ke6 {[%clk 0:00:05]} 73. Rb8 {[%clk 0:00:03]}  Rxf6 {[%clk 0:00:04]} 74. Rb6+ {[%clk 0:00:04]}  Ke7 {[%clk 0:00:04]} 75. Rb7+ {[%clk 0:00:03]}  Ke6 {[%clk 0:00:03]} 76. Rxb2 {[%clk 0:00:04]}  Rf3 {[%clk 0:00:03]} 77. Rb8 {[%clk 0:00:03]}  Kf7 {[%clk 0:00:02]} 78. Rb7+ {[%clk 0:00:03]}  Kg8 {[%clk 0:00:03]} 79. Kg6 {[%clk 0:00:03]}  Rf8 {[%clk 0:00:03]} 80. g5 {[%clk 0:00:03]}  Rc8 {[%clk 0:00:02]} 81. Kh6 {[%clk 0:00:02]}  Rc6+ {[%clk 0:00:02]} 82. Kh5 {[%clk 0:00:02]}  Rc8 {[%clk 0:00:03]} 83. Rb6 {[%clk 0:00:02]}  Rd8 {[%clk 0:00:03]} 84. Kg6 {[%clk 0:00:02]}  Rc8 {[%clk 0:00:03]} 85. Rd6 {[%clk 0:00:02]}  Ra8 {[%clk 0:00:04]} 86. Rc6 {[%clk 0:00:03]}  Rb8 {[%clk 0:00:04]} 87. Ra6 {[%clk 0:00:03]}  Rc8 {[%clk 0:00:05]} 88. Kh6 {[%clk 0:00:03]}  Rd8 {[%clk 0:00:05]} 89. Rf6 {[%clk 0:00:03]}  Rc8 {[%clk 0:00:05]} 90. Rg6+ {[%clk 0:00:04]}  Kh8 {[%clk 0:00:05]} 91. Rg7 {[%clk 0:00:04]}  Rc6+ {[%clk 0:00:05]} 92. g6 {[%clk 0:00:04]}  Rc8 {[%clk 0:00:04]} 93. Re7 {[%clk 0:00:03]}  Kg8 {[%clk 0:00:05]} 94. Re6 {[%clk 0:00:03]}  Rd8 {[%clk 0:00:05]} 95. Rf6 {[%clk 0:00:04]}  Rc8 {[%clk 0:00:05]} 96. Rd6 {[%clk 0:00:04]}  Ra8 {[%clk 0:00:05]} 97. Rd5 {[%clk 0:00:04]}  Rb8 {[%clk 0:00:05]} 98. Kg5 {[%clk 0:00:04]}  Ra8 {[%clk 0:00:06]} 99. Rd7 {[%clk 0:00:04]}  Rb8 {[%clk 0:00:06]} 100. Kh6 {[%clk 0:00:04]}  Ra8 {[%clk 0:00:06]} 101. Rh7 {[%clk 0:00:04]}  Rb8 {[%clk 0:00:06]} 102. Rg7+ {[%clk 0:00:05]}  Kh8 {[%clk 0:00:06]} 103. Ra7 {[%clk 0:00:05]}  Kg8 {[%clk 0:00:06]} 104. Rf7 {[%clk 0:00:05]}  Kh8 {[%clk 0:00:07]} 105. Rf8+ {[%clk 0:00:03]}  Rxf8 {[%clk 0:00:06]} 106. g7+ {[%clk 0:00:04]}  Kg8 {[%clk 0:00:07]} 107. gxf8=Q+ {[%clk 0:00:05]}  Kxf8 {[%clk 0:00:08]} 1/2-1/2


[Site "https://www.chess.com"]

[Event "Titled Tuesday Blitz April 11 Late 2023"]
[White "Mendez Fortes, Eduardo Jesus"]
[Black "Sarana, Alexey"]
[WhiteFideId "3502376"]
[BlackFideId "24133795"]
[WhiteElo "2307"]
[BlackElo "2714"]
[Result "0-1"]
[Round "04"]
[TimeControl "180+2"]
[Date "2023.04.11"]
[WhiteClock "0:00:05"]
[BlackClock "0:00:05"]

1. e4 {[%clk 0:03:00]}  c5 {[%clk 0:02:58]} 2. Nf3 {[%clk 0:03:01]}  d6 {[%clk 0:02:58]} 3. d4 {[%clk 0:03:01]}  cxd4 {[%clk 0:02:59]} 4. Nxd4 {[%clk 0:03:02]}  Nf6 {[%clk 0:03:00]} 5. Nc3 {[%clk 0:03:03]}  a6 {[%clk 0:03:01]} 6. Bg5 {[%clk 0:03:03]}  e6 {[%clk 0:03:01]} 7. f4 {[%clk 0:03:03]}  Qb6 {[%clk 0:03:01]} 8. Qd3 {[%clk 0:03:03]}  Nc6 {[%clk 0:02:59]} 9. O-O-O {[%clk 0:03:03]}  Nxd4 {[%clk 0:02:58]} 10. Qxd4 {[%clk 0:03:04]}  Qxd4 {[%clk 0:02:58]} 11. Rxd4 {[%clk 0:03:04]}  Bd7 {[%clk 0:02:58]} 12. Be2 {[%clk 0:02:59]}  Bc6 {[%clk 0:02:58]} 13. Bf3 {[%clk 0:02:59]}  Be7 {[%clk 0:02:53]} 14. Bh4 {[%clk 0:02:37]}  Rd8 {[%clk 0:02:20]} 15. Rhd1 {[%clk 0:02:33]}  e5 {[%clk 0:02:13]} 16. fxe5 {[%clk 0:02:28]}  dxe5 {[%clk 0:02:14]} 17. Rxd8+ {[%clk 0:02:26]}  Bxd8 {[%clk 0:02:14]} 18. Bxf6 {[%clk 0:02:20]}  Bxf6 {[%clk 0:02:14]} 19. Bg4 {[%clk 0:02:15]}  h5 {[%clk 0:02:11]} 20. Be2 {[%clk 0:02:13]}  Bg5+ {[%clk 0:02:11]} 21. Kb1 {[%clk 0:02:14]}  h4 {[%clk 0:02:08]} 22. h3 {[%clk 0:02:12]}  g6 {[%clk 0:02:01]} 23. Bc4 {[%clk 0:02:09]}  Bf4 {[%clk 0:01:34]} 24. Bd5 {[%clk 0:02:04]}  Rh5 {[%clk 0:01:31]} 25. Bxc6+ {[%clk 0:01:25]}  bxc6 {[%clk 0:01:32]} 26. Rf1 {[%clk 0:01:25]}  Rg5 {[%clk 0:01:29]} 27. Rf2 {[%clk 0:01:25]}  Rg3 {[%clk 0:01:29]} 28. a4 {[%clk 0:01:22]}  Bg5 {[%clk 0:00:56]} 29. Ka2 {[%clk 0:01:13]}  Be7 {[%clk 0:00:54]} 30. Re2 {[%clk 0:01:07]}  Kd7 {[%clk 0:00:50]} 31. Kb3 {[%clk 0:01:05]}  Bd6 {[%clk 0:00:49]} 32. Kc4 {[%clk 0:01:03]}  f5 {[%clk 0:00:50]} 33. b4 {[%clk 0:00:53]}  f4 {[%clk 0:00:48]} 34. Rf2 {[%clk 0:00:49]}  g5 {[%clk 0:00:45]} 35. b5 {[%clk 0:00:41]}  cxb5+ {[%clk 0:00:42]} 36. axb5 {[%clk 0:00:42]}  axb5+ {[%clk 0:00:42]} 37. Nxb5 {[%clk 0:00:42]}  Ke6 {[%clk 0:00:36]} 38. Rd2 {[%clk 0:00:39]}  Be7 {[%clk 0:00:26]} 39. Nc7+ {[%clk 0:00:34]}  Kf7 {[%clk 0:00:26]} 40. Nd5 {[%clk 0:00:26]}  Ba3 {[%clk 0:00:16]} 41. c3 {[%clk 0:00:20]}  f3 {[%clk 0:00:11]} 42. Rf2 {[%clk 0:00:17]}  Rxg2 {[%clk 0:00:11]} 43. Rxf3+ {[%clk 0:00:17]}  Kg7 {[%clk 0:00:08]} 44. Ne3 {[%clk 0:00:16]}  Rg1 {[%clk 0:00:07]} 45. Nf5+ {[%clk 0:00:17]}  Kg6 {[%clk 0:00:07]} 46. Kd5 {[%clk 0:00:16]}  Bc1 {[%clk 0:00:05]} 47. Kxe5 {[%clk 0:00:14]}  Bf4+ {[%clk 0:00:05]} 48. Ke6 {[%clk 0:00:14]}  Bh2 {[%clk 0:00:03]} 49. c4 {[%clk 0:00:14]}  Ra1 {[%clk 0:00:03]} 50. c5 {[%clk 0:00:13]}  Rc1 {[%clk 0:00:03]} 51. Kd5 {[%clk 0:00:12]}  Rd1+ {[%clk 0:00:03]} 52. Kc6 {[%clk 0:00:10]}  Re1 {[%clk 0:00:03]} 53. Nd6 {[%clk 0:00:08]}  Bg3 {[%clk 0:00:02]} 54. Nf5 {[%clk 0:00:07]}  Bf4 {[%clk 0:00:01]} 55. Kd5 {[%clk 0:00:06]}  Bh2 {[%clk 0:00:01]} 56. c6 {[%clk 0:00:06]}  Rd1+ {[%clk 0:00:02]} 57. Ke6 {[%clk 0:00:04]}  Rc1 {[%clk 0:00:02]} 58. Kd5 {[%clk 0:00:03]}  Rd1+ {[%clk 0:00:02]} 59. Kc4 {[%clk 0:00:03]}  Be5 {[%clk 0:00:01]} 60. Rd3 {[%clk 0:00:02]}  Rc1+ {[%clk 0:00:01]} 61. Kd5 {[%clk 0:00:03]}  Bf4 {[%clk 0:00:02]} 62. e5 {[%clk 0:00:04]}  Kxf5 {[%clk 0:00:02]} 63. Rd4 {[%clk 0:00:03]}  Bxe5 {[%clk 0:00:02]} 64. Rg4 {[%clk 0:00:03]}  Rd1+ {[%clk 0:00:02]} 65. Kc5 {[%clk 0:00:03]}  Bf4 {[%clk 0:00:03]} 66. Kb6 {[%clk 0:00:04]}  Rb1+ {[%clk 0:00:03]} 67. Kc5 {[%clk 0:00:04]}  Rb3 {[%clk 0:00:03]} 68. Kd5 {[%clk 0:00:04]}  Rxh3 {[%clk 0:00:03]} 69. Rg2 {[%clk 0:00:03]}  Rd3+ {[%clk 0:00:03]} 70. Kc5 {[%clk 0:00:04]}  Rc3+ {[%clk 0:00:03]} 71. Kb6 {[%clk 0:00:05]}  Rc1 {[%clk 0:00:04]} 72. Kb7 {[%clk 0:00:05]}  h3 {[%clk 0:00:05]} 73. Rf2 {[%clk 0:00:05]}  h2 {[%clk 0:00:05]} 0-1


[Site "https://www.chess.com"]

[Event "Titled Tuesday Blitz April 11 Late 2023"]
[White "Martinez Reyes, Pedro Ramon"]
[Black "Indjic, Aleksandar"]
[WhiteFideId "3901807"]
[BlackFideId "911925"]
[WhiteElo "2340"]
[BlackElo "2614"]
[Result "1-0"]
[Round "04"]
[TimeControl "180+2"]
[Date "2023.04.11"]
[WhiteClock "0:01:06"]
[BlackClock "0:00:13"]

1. d3 {[%clk 0:03:00]}  d5 {[%clk 0:02:57]} 2. Nf3 {[%clk 0:03:01]}  Nc6 {[%clk 0:02:56]} 3. g3 {[%clk 0:03:01]}  e5 {[%clk 0:02:55]} 4. Bg2 {[%clk 0:03:02]}  h6 {[%clk 0:02:55]} 5. O-O {[%clk 0:03:02]}  Nf6 {[%clk 0:02:55]} 6. c4 {[%clk 0:03:03]}  Be6 {[%clk 0:02:46]} 7. cxd5 {[%clk 0:02:52]}  Nxd5 {[%clk 0:02:47]} 8. Nc3 {[%clk 0:02:52]}  Bc5 {[%clk 0:02:45]} 9. Nxe5 {[%clk 0:02:45]}  Nxe5 {[%clk 0:02:43]} 10. d4 {[%clk 0:02:46]}  Nxc3 {[%clk 0:02:30]} 11. bxc3 {[%clk 0:02:46]}  Bb6 {[%clk 0:02:22]} 12. dxe5 {[%clk 0:02:46]}  Qxd1 {[%clk 0:01:23]} 13. Rxd1 {[%clk 0:02:47]}  c6 {[%clk 0:01:22]} 14. a4 {[%clk 0:02:47]}  Rd8 {[%clk 0:01:12]} 15. Ba3 {[%clk 0:02:36]}  Rxd1+ {[%clk 0:01:08]} 16. Rxd1 {[%clk 0:02:37]}  Bc7 {[%clk 0:01:08]} 17. Bd6 {[%clk 0:02:26]}  Ba5 {[%clk 0:00:57]} 18. Rb1 {[%clk 0:02:21]}  Bc8 {[%clk 0:00:55]} 19. c4 {[%clk 0:02:20]}  f6 {[%clk 0:00:51]} 20. e6 {[%clk 0:02:18]}  g6 {[%clk 0:00:31]} 21. g4 {[%clk 0:01:55]}  Kd8 {[%clk 0:00:24]} 22. Rd1 {[%clk 0:01:51]}  Ke8 {[%clk 0:00:23]} 23. Be4 {[%clk 0:01:47]}  Rg8 {[%clk 0:00:21]} 24. Rb1 {[%clk 0:01:44]}  f5 {[%clk 0:00:22]} 25. Bf3 {[%clk 0:01:41]}  Kd8 {[%clk 0:00:19]} 26. Rd1 {[%clk 0:01:31]}  Ke8 {[%clk 0:00:19]} 27. Rb1 {[%clk 0:01:31]}  Kd8 {[%clk 0:00:18]} 28. e7+ {[%clk 0:01:32]}  Kd7 {[%clk 0:00:18]} 29. c5 {[%clk 0:01:32]}  Bc7 {[%clk 0:00:17]} 30. Rd1 {[%clk 0:01:29]}  Bxd6 {[%clk 0:00:17]} 31. cxd6 {[%clk 0:01:30]}  Ke6 {[%clk 0:00:17]} 32. gxf5+ {[%clk 0:01:28]}  gxf5+ {[%clk 0:00:18]} 33. Kf1 {[%clk 0:01:28]}  Bd7 {[%clk 0:00:19]} 34. Bh5 {[%clk 0:01:28]}  f4 {[%clk 0:00:17]} 35. f3 {[%clk 0:01:26]}  Ke5 {[%clk 0:00:16]} 36. Bg4 {[%clk 0:01:25]}  Bxg4 {[%clk 0:00:15]} 37. fxg4 {[%clk 0:01:26]}  Ke6 {[%clk 0:00:16]} 38. Kf2 {[%clk 0:01:23]}  Kd7 {[%clk 0:00:16]} 39. Kf3 {[%clk 0:01:23]}  Rg6 {[%clk 0:00:16]} 40. Kxf4 {[%clk 0:01:22]}  Rf6+ {[%clk 0:00:17]} 41. Kg3 {[%clk 0:01:22]}  Re6 {[%clk 0:00:17]} 42. Kf3 {[%clk 0:01:21]}  Rf6+ {[%clk 0:00:17]} 43. Kg3 {[%clk 0:01:21]}  Re6 {[%clk 0:00:17]} 44. Rd2 {[%clk 0:01:16]}  b5 {[%clk 0:00:16]} 45. axb5 {[%clk 0:01:11]}  cxb5 {[%clk 0:00:17]} 46. Kf4 {[%clk 0:01:12]}  b4 {[%clk 0:00:17]} 47. e4 {[%clk 0:01:12]}  a5 {[%clk 0:00:16]} 48. e5 {[%clk 0:01:13]}  b3 {[%clk 0:00:17]} 49. Rd5 {[%clk 0:01:08]}  a4 {[%clk 0:00:16]} 50. Rb5 {[%clk 0:01:09]}  Kc6 {[%clk 0:00:16]} 51. Rb8 {[%clk 0:01:08]}  Kd5 {[%clk 0:00:13]} 52. d7 {[%clk 0:01:06]} 1-0


[Site "https://www.chess.com"]